[Event "*** Titled Tuesday 3|2 Blitz"]
[Site "Chess.com"]
[Date "2016.07.05"]
[Round "3"]
[White "ruifeng"]
[Black "Quiet_Desperation"]
[Result "1-0"]
[WhiteElo "2315"]
[BlackElo "2194"]
[TimeControl "180+2"]
[EndTime "11:30:52 PDT"]
[Termination "ruifeng won by resignation"]

1. e4 {[%clk 0:03:01.9]} 1... Nc6 {[%clk 0:03:00.3]} 2. Nf3 {[%clk 0:03:01.8]}
2... d6 {[%clk 0:03:01.6]} 3. d4 {[%clk 0:03:02.3]} 3... Nf6 {[%clk 0:03:03]} 4.
Nc3 {[%clk 0:03:02.3]} 4... d5 {[%clk 0:03:04.2]} 5. exd5 {[%clk 0:02:55.4]}
5... Nxd5 {[%clk 0:03:04.2]} 6. Bc4 {[%clk 0:02:56.4]} 6... e6 {[%clk
0:03:02.3]} 7. O-O {[%clk 0:02:55.9]} 7... Be7 {[%clk 0:03:03.4]} 8. Ne4 {[%clk
0:02:56.3]} 8... O-O {[%clk 0:03:04.3]} 9. c3 {[%clk 0:02:55.4]} 9... Nb6 {[%clk
0:03:02.3]} 10. Bd3 {[%clk 0:02:56.3]} 10... f5 {[%clk 0:02:59.5]} 11. Ng3
{[%clk 0:02:56.9]} 11... Nd5 {[%clk 0:02:55.5]} 12. Re1 {[%clk 0:02:57.6]} 12...
Bf6 {[%clk 0:02:54.9]} 13. a3 {[%clk 0:02:56.5]} 13... a6 {[%clk 0:02:42.5]} 14.
Nh5 {[%clk 0:02:57.4]} 14... Bd7 {[%clk 0:02:32.2]} 15. Nxf6+ {[%clk 0:02:56.9]}
15... Qxf6 {[%clk 0:02:32.9]} 16. Bg5 {[%clk 0:02:57.7]} 16... Qg6 {[%clk
0:02:25.2]} 17. Bc4 {[%clk 0:02:58.3]} 17... Rae8 {[%clk 0:02:18.3]} 18. Bxd5
{[%clk 0:02:54.8]} 18... exd5 {[%clk 0:02:18.1]} 19. Bf4 {[%clk 0:02:55.9]}
19... Rc8 {[%clk 0:02:04.1]} 20. Qd2 {[%clk 0:02:48.1]} 20... Na5 {[%clk
0:02:02.6]} 21. Ne5 {[%clk 0:02:44.8]} 21... Qe6 {[%clk 0:01:44.8]} 22. Qc2
{[%clk 0:02:25.4]} 22... Rce8 {[%clk 0:01:40.1]} 23. Re3 {[%clk 0:02:25.3]}
23... Bb5 {[%clk 0:01:26.1]} 24. Rae1 {[%clk 0:02:25.8]} 24... Qb6 {[%clk
0:01:18.4]} 25. a4 {[%clk 0:02:14.8]} 25... Bc4 {[%clk 0:01:16.6]} 26. Nd7
{[%clk 0:02:13.3]} 26... Rxe3 {[%clk 0:01:16.1]} 27. Rxe3 {[%clk 0:02:13.4]}
27... Qc6 {[%clk 0:01:03.9]} 28. Nxf8 {[%clk 0:02:12.6]} 28... Kxf8 {[%clk
0:01:05]} 29. Qxf5+ {[%clk 0:02:13.8]} 1-0

[Event "*** Titled Tuesday 3|2 Blitz"]
[Site "Chess.com"]
[Date "2016.07.05"]
[Round "3"]
[White "cool64chess"]
[Black "jeaston1"]
[Result "1-0"]
[WhiteElo "2217"]
[BlackElo "2159"]
[TimeControl "180+2"]
[EndTime "11:31:09 PDT"]
[Termination "cool64chess won by resignation"]

1. d4 {[%clk 0:03:01.9]} 1... d5 {[%clk 0:03:00.2]} 2. c4 {[%clk 0:03:01.7]}
2... dxc4 {[%clk 0:03:01.7]} 3. e3 {[%clk 0:03:00.3]} 3... Nf6 {[%clk
0:03:02.4]} 4. Bxc4 {[%clk 0:02:54.2]} 4... a6 {[%clk 0:03:03.6]} 5. a4 {[%clk
0:02:48.8]} 5... e6 {[%clk 0:03:01.2]} 6. Nf3 {[%clk 0:02:49.5]} 6... c5 {[%clk
0:03:01.2]} 7. O-O {[%clk 0:02:49.6]} 7... Nc6 {[%clk 0:02:59.7]} 8. Nc3 {[%clk
0:02:47.4]} 8... cxd4 {[%clk 0:03:00]} 9. exd4 {[%clk 0:02:48.3]} 9... Be7
{[%clk 0:02:59.1]} 10. h3 {[%clk 0:02:48.1]} 10... O-O {[%clk 0:02:59.8]} 11.
Bf4 {[%clk 0:02:48.2]} 11... Bd6 {[%clk 0:02:59]} 12. Ne5 {[%clk 0:02:48.4]}
12... Ne7 {[%clk 0:02:36.1]} 13. Re1 {[%clk 0:02:41.2]} 13... b6 {[%clk
0:02:34.5]} 14. Qf3 {[%clk 0:02:38.6]} 14... Rb8 {[%clk 0:02:11.9]} 15. Bg5
{[%clk 0:02:33.2]} 15... Bb7 {[%clk 0:02:11.2]} 16. Qe2 {[%clk 0:02:29.7]} 16...
Nd7 {[%clk 0:01:05]} 17. Nxf7 {[%clk 0:02:09.7]} 17... Rxf7 {[%clk 0:01:01.4]}
18. Qxe6 {[%clk 0:02:09.3]} 18... Qf8 {[%clk 0:00:46.2]} 19. Qxd6 {[%clk
0:01:53]} 1-0

[Event "*** Titled Tuesday 3|2 Blitz"]
[Site "Chess.com"]
[Date "2016.07.05"]
[Round "3"]
[White "Matibar"]
[Black "E-Shaposhnikov"]
[Result "0-1"]
[WhiteElo "2593"]
[BlackElo "2646"]
[TimeControl "180+2"]
[EndTime "11:31:22 PDT"]
[Termination "E-Shaposhnikov won by resignation"]

1. g3 {[%clk 0:03:01.9]} 1... d5 {[%clk 0:02:58.9]} 2. Bg2 {[%clk 0:03:01.6]}
2... c6 {[%clk 0:02:59.3]} 3. d3 {[%clk 0:03:02.7]} 3... Bg4 {[%clk 0:02:59.3]}
4. h3 {[%clk 0:03:00.9]} 4... Bh5 {[%clk 0:02:59.4]} 5. f4 {[%clk 0:03:01.9]}
5... e6 {[%clk 0:02:56.5]} 6. Nf3 {[%clk 0:03:02.6]} 6... Nf6 {[%clk 0:02:57.5]}
7. O-O {[%clk 0:03:00.4]} 7... Nbd7 {[%clk 0:02:53.9]} 8. Qe1 {[%clk 0:02:58.3]}
8... Bc5+ {[%clk 0:02:48.9]} 9. e3 {[%clk 0:02:56.2]} 9... Bxf3 {[%clk
0:02:48.3]} 10. Bxf3 {[%clk 0:02:56.4]} 10... e5 {[%clk 0:02:48.4]} 11. d4
{[%clk 0:02:56.3]} 11... exd4 {[%clk 0:02:44.9]} 12. exd4+ {[%clk 0:02:58.2]}
12... Be7 {[%clk 0:02:46.6]} 13. Nc3 {[%clk 0:02:56]} 13... O-O {[%clk
0:02:44.9]} 14. a3 {[%clk 0:02:56.7]} 14... Re8 {[%clk 0:02:42.9]} 15. Qf2
{[%clk 0:02:57.6]} 15... Bd6 {[%clk 0:02:43.5]} 16. Qg2 {[%clk 0:02:58.5]} 16...
Qb6 {[%clk 0:02:36.7]} 17. Rd1 {[%clk 0:02:59.3]} 17... Re7 {[%clk 0:02:30]} 18.
Na4 {[%clk 0:02:42.3]} 18... Qa5 {[%clk 0:02:24.2]} 19. b3 {[%clk 0:02:41.8]}
19... Rae8 {[%clk 0:02:17.4]} 20. Bd2 {[%clk 0:02:42.6]} 20... Qa6 {[%clk
0:02:15.3]} 21. Bb4 {[%clk 0:02:36.9]} 21... Bxb4 {[%clk 0:02:11]} 22. axb4
{[%clk 0:02:38.8]} 22... Qb5 {[%clk 0:02:10.7]} 23. c3 {[%clk 0:02:28.2]} 23...
Re3 {[%clk 0:02:07.1]} 24. Rd2 {[%clk 0:02:26.6]} 24... b6 {[%clk 0:01:59.4]}
25. Raa2 {[%clk 0:01:53.6]} 25... Ne4 {[%clk 0:01:51.2]} 26. Be2 {[%clk
0:01:44.8]} 26... Nxd2 {[%clk 0:01:38.2]} 27. Bxb5 {[%clk 0:01:45.7]} 27... Nf3+
{[%clk 0:01:38.4]} 28. Kf2 {[%clk 0:01:44.1]} 28... cxb5 {[%clk 0:01:36.4]} 29.
Qf1 {[%clk 0:01:37.9]} 29... bxa4 {[%clk 0:01:33.1]} 30. bxa4 {[%clk 0:01:37.5]}
30... Nf6 {[%clk 0:01:34.7]} 0-1

[Event "*** Titled Tuesday 3|2 Blitz"]
[Site "Chess.com"]
[Date "2016.07.05"]
[Round "3"]
[White "theprosecution1"]
[Black "TheLancer"]
[Result "1-0"]
[WhiteElo "2542"]
[BlackElo "2463"]
[TimeControl "180+2"]
[EndTime "11:31:43 PDT"]
[Termination "theprosecution1 won by resignation"]

1. d4 {[%clk 0:03:01.9]} 1... Nf6 {[%clk 0:02:59.9]} 2. Nf3 {[%clk 0:03:01.8]}
2... e6 {[%clk 0:03:01.1]} 3. e3 {[%clk 0:03:03.2]} 3... c5 {[%clk 0:03:01.2]}
4. Bd3 {[%clk 0:03:05.1]} 4... cxd4 {[%clk 0:03:01.9]} 5. exd4 {[%clk 0:03:07]}
5... Be7 {[%clk 0:03:02.6]} 6. O-O {[%clk 0:03:07.7]} 6... d6 {[%clk 0:03:03.3]}
7. c4 {[%clk 0:03:08.5]} 7... a6 {[%clk 0:03:04.2]} 8. Nc3 {[%clk 0:03:10.4]}
8... b6 {[%clk 0:03:04.4]} 9. Re1 {[%clk 0:03:10.6]} 9... Bb7 {[%clk 0:03:05.3]}
10. Ng5 {[%clk 0:02:59.4]} 10... O-O {[%clk 0:02:40.4]} 11. Re3 {[%clk
0:02:52.5]} 11... Nc6 {[%clk 0:02:24]} 12. Rh3 {[%clk 0:02:24.4]} 12... g6
{[%clk 0:01:02.2]} 13. Be3 {[%clk 0:02:17.8]} 13... Re8 {[%clk 0:00:54.9]} 14.
Qf3 {[%clk 0:01:30.3]} 14... Rb8 {[%clk 0:00:17]} 15. Rxh7 {[%clk 0:01:24.3]}
15... Ne5 {[%clk 0:00:12.9]} 16. Qh3 {[%clk 0:01:25.4]} 16... Nxh7 {[%clk
0:00:07.7]} 17. Qxh7+ {[%clk 0:01:26.2]} 1-0

[Event "*** Titled Tuesday 3|2 Blitz"]
[Site "Chess.com"]
[Date "2016.07.05"]
[Round "3"]
[White "Byniolus"]
[Black "Tonychess32"]
[Result "0-1"]
[WhiteElo "2572"]
[BlackElo "2415"]
[TimeControl "180+2"]
[EndTime "11:31:53 PDT"]
[Termination "Tonychess32 won by resignation"]

1. d4 {[%clk 0:02:55.7]} 1... Nf6 {[%clk 0:02:58.7]} 2. Bf4 {[%clk 0:02:57.3]}
2... e6 {[%clk 0:02:59.1]} 3. e3 {[%clk 0:02:58.9]} 3... d5 {[%clk 0:02:59.2]}
4. Nf3 {[%clk 0:02:59.9]} 4... c5 {[%clk 0:03:00.5]} 5. c3 {[%clk 0:03:01]} 5...
Nc6 {[%clk 0:03:01.3]} 6. Nbd2 {[%clk 0:03:02.4]} 6... Bd6 {[%clk 0:03:01.9]} 7.
Bg3 {[%clk 0:03:03.9]} 7... O-O {[%clk 0:03:00.4]} 8. Bd3 {[%clk 0:03:04.6]}
8... b6 {[%clk 0:02:57.9]} 9. Ne5 {[%clk 0:03:04.4]} 9... Bb7 {[%clk 0:02:56.1]}
10. f4 {[%clk 0:03:01.5]} 10... Ne7 {[%clk 0:02:54.4]} 11. Qb1 {[%clk
0:03:02.4]} 11... g6 {[%clk 0:02:52]} 12. Bh4 {[%clk 0:03:02]} 12... Nf5 {[%clk
0:02:52.7]} 13. Bxf6 {[%clk 0:02:43.2]} 13... Qxf6 {[%clk 0:02:54.6]} 14. Ke2
{[%clk 0:02:40.9]} 14... cxd4 {[%clk 0:02:53]} 15. cxd4 {[%clk 0:02:41.9]} 15...
Qe7 {[%clk 0:02:52.8]} 16. g4 {[%clk 0:02:39.2]} 16... Ng7 {[%clk 0:02:44]} 17.
g5 {[%clk 0:02:30.4]} 17... Bxe5 {[%clk 0:02:33.2]} 18. dxe5 {[%clk 0:02:29.8]}
18... d4 {[%clk 0:02:34.8]} 19. e4 {[%clk 0:02:29.3]} 19... Nh5 {[%clk
0:02:30.8]} 20. Qf1 {[%clk 0:02:22.8]} 20... Qb4 {[%clk 0:02:31.8]} 21. Rb1
{[%clk 0:02:17.1]} 21... Rac8 {[%clk 0:02:32.4]} 22. Qf3 {[%clk 0:02:13.4]}
22... Qa5 {[%clk 0:02:28.1]} 23. a3 {[%clk 0:02:11.9]} 23... Ba6 {[%clk
0:02:25.3]} 24. Bxa6 {[%clk 0:01:49.5]} 24... Qxa6+ {[%clk 0:02:27.2]} 25. Kf2
{[%clk 0:01:50.7]} 25... Rc2 {[%clk 0:02:23.9]} 26. Rhd1 {[%clk 0:01:49.3]}
26... Qb5 {[%clk 0:02:21.6]} 27. Kg1 {[%clk 0:01:15.4]} 27... Rfc8 {[%clk
0:02:14.7]} 28. Qf2 {[%clk 0:01:05.2]} 28... Rxb2 {[%clk 0:02:11.3]} 29. Qxd4
{[%clk 0:01:03]} 29... Rxb1 {[%clk 0:01:50]} 30. Rxb1 {[%clk 0:01:04.9]} 30...
Qe2 {[%clk 0:01:50.2]} 31. Qf2 {[%clk 0:00:56.9]} 31... Qg4+ {[%clk 0:01:49.3]}
32. Kh1 {[%clk 0:00:54.7]} 32... Nxf4 {[%clk 0:01:50.5]} 33. Rg1 {[%clk
0:00:52.6]} 33... Nh3 {[%clk 0:01:44.9]} 0-1

[Event "*** Titled Tuesday 3|2 Blitz"]
[Site "Chess.com"]
[Date "2016.07.05"]
[Round "3"]
[White "wnstop"]
[Black "Fandorine"]
[Result "0-1"]
[WhiteElo "2361"]
[BlackElo "2624"]
[TimeControl "180+2"]
[EndTime "11:32:17 PDT"]
[Termination "Fandorine won by resignation"]

1. e4 {[%clk 0:03:01.9]} 1... c6 {[%clk 0:03:01.1]} 2. d4 {[%clk 0:03:02.7]}
2... d5 {[%clk 0:03:02.7]} 3. Nc3 {[%clk 0:03:03.9]} 3... dxe4 {[%clk
0:03:03.7]} 4. Nxe4 {[%clk 0:03:05.8]} 4... Bf5 {[%clk 0:03:05.2]} 5. Ng3 {[%clk
0:03:07.1]} 5... Bg6 {[%clk 0:03:06.5]} 6. Nh3 {[%clk 0:03:08.8]} 6... Nf6
{[%clk 0:03:03.6]} 7. Nf4 {[%clk 0:03:08.7]} 7... Nbd7 {[%clk 0:03:03.9]} 8. h4
{[%clk 0:02:48]} 8... e5 {[%clk 0:02:59.1]} 9. Nxg6 {[%clk 0:02:49.2]} 9... hxg6
{[%clk 0:02:59.2]} 10. dxe5 {[%clk 0:02:50.6]} 10... Qa5+ {[%clk 0:03:00.4]} 11.
c3 {[%clk 0:02:48.4]} 11... Qxe5+ {[%clk 0:03:01.9]} 12. Qe2 {[%clk 0:02:49.5]}
12... Bc5 {[%clk 0:03:03.5]} 13. Bf4 {[%clk 0:02:44.8]} 13... Qxe2+ {[%clk
0:03:03.3]} 14. Bxe2 {[%clk 0:02:46.7]} 14... O-O-O {[%clk 0:03:00.4]} 15. Nf1
{[%clk 0:02:22.5]} 15... Rde8 {[%clk 0:02:37.2]} 16. Ne3 {[%clk 0:02:16.9]}
16... Ne4 {[%clk 0:02:38.2]} 17. Bg4 {[%clk 0:01:41.4]} 17... f5 {[%clk
0:02:30.8]} 18. Be2 {[%clk 0:01:36.6]} 18... g5 {[%clk 0:02:27.4]} 19. Bh2
{[%clk 0:01:25]} 19... Nxf2 {[%clk 0:02:23]} 20. Kxf2 {[%clk 0:01:17.7]} 20...
Bxe3+ {[%clk 0:02:23.7]} 21. Kf1 {[%clk 0:01:16.8]} 21... Rxh4 {[%clk 0:02:25]}
22. g3 {[%clk 0:01:12.5]} 22... Rh6 {[%clk 0:02:25.8]} 23. Kg2 {[%clk
0:01:13.5]} 23... Bg1 {[%clk 0:02:14.5]} 24. Bd3 {[%clk 0:01:05.9]} 24... Bxh2
{[%clk 0:02:13.3]} 25. Rxh2 {[%clk 0:01:07.8]} 25... Rxh2+ {[%clk 0:02:13.9]}
26. Kxh2 {[%clk 0:01:09.7]} 26... g6 {[%clk 0:02:14.4]} 27. Rd1 {[%clk
0:01:08.5]} 27... Re3 {[%clk 0:02:13.2]} 28. Kg2 {[%clk 0:01:08.2]} 28... Ne5
{[%clk 0:02:14.6]} 29. Bf1 {[%clk 0:01:07.7]} 29... Kc7 {[%clk 0:02:15.5]} 30.
Rd4 {[%clk 0:01:07.9]} 30... Re1 {[%clk 0:02:10.6]} 31. Rd2 {[%clk 0:01:06.8]}
31... g4 {[%clk 0:02:07.3]} 32. Re2 {[%clk 0:01:05.8]} 32... Rxe2+ {[%clk
0:02:08]} 33. Bxe2 {[%clk 0:01:07.7]} 33... g5 {[%clk 0:02:09.3]} 34. Kf2 {[%clk
0:01:07.2]} 34... f4 {[%clk 0:02:10.8]} 35. Bf1 {[%clk 0:01:06]} 35... Kd6
{[%clk 0:02:11.2]} 36. Be2 {[%clk 0:01:07.2]} 36... Kd5 {[%clk 0:02:12.1]} 37.
Bf1 {[%clk 0:01:07.7]} 37... Ke4 {[%clk 0:02:13.2]} 38. Be2 {[%clk 0:01:07.6]}
38... Nd3+ {[%clk 0:02:13.1]} 39. Kf1 {[%clk 0:01:02.5]} 39... Nxb2 {[%clk
0:02:13.6]} 40. Bxg4 {[%clk 0:01:03.1]} 40... fxg3 {[%clk 0:02:15.2]} 41. Kg2
{[%clk 0:01:02.3]} 41... Kf4 {[%clk 0:02:16.2]} 42. Bc8 {[%clk 0:00:56.7]} 42...
b6 {[%clk 0:02:17.3]} 43. Bd7 {[%clk 0:00:58]} 43... c5 {[%clk 0:02:18.8]} 44.
Bb5 {[%clk 0:00:57.3]} 44... Nd1 {[%clk 0:02:20]} 45. c4 {[%clk 0:00:56.2]}
45... Ne3+ {[%clk 0:02:21]} 46. Kg1 {[%clk 0:00:57.3]} 46... Ke5 {[%clk
0:02:22.6]} 0-1

[Event "*** Titled Tuesday 3|2 Blitz"]
[Site "Chess.com"]
[Date "2016.07.05"]
[Round "3"]
[White "BellJackson95"]
[Black "DiamondCrusher22"]
[Result "1-0"]
[WhiteElo "2195"]
[BlackElo "1852"]
[TimeControl "180+2"]
[EndTime "11:32:25 PDT"]
[Termination "BellJackson95 won by resignation"]

1. d4 {[%clk 0:03:01.9]} 1... d5 {[%clk 0:02:59.9]} 2. c4 {[%clk 0:03:02.8]}
2... c6 {[%clk 0:02:59.6]} 3. Nc3 {[%clk 0:03:04.2]} 3... Nf6 {[%clk 0:02:59.9]}
4. cxd5 {[%clk 0:03:00.1]} 4... cxd5 {[%clk 0:03:00.3]} 5. f3 {[%clk 0:03:01.6]}
5... e6 {[%clk 0:02:57]} 6. e4 {[%clk 0:03:03]} 6... dxe4 {[%clk 0:02:55.8]} 7.
fxe4 {[%clk 0:03:04.7]} 7... Nc6 {[%clk 0:02:57]} 8. Nf3 {[%clk 0:02:59.5]} 8...
Bb4 {[%clk 0:02:56.6]} 9. Qd3 {[%clk 0:02:56.7]} 9... O-O {[%clk 0:02:56.4]} 10.
Bg5 {[%clk 0:02:51.8]} 10... h6 {[%clk 0:02:55]} 11. Bh4 {[%clk 0:02:50.7]}
11... Be7 {[%clk 0:02:30.5]} 12. Be2 {[%clk 0:02:47.7]} 12... Nb4 {[%clk
0:02:19.9]} 13. Qb1 {[%clk 0:02:32.9]} 13... Ng4 {[%clk 0:02:05]} 14. Bxe7
{[%clk 0:02:29.2]} 14... Qxe7 {[%clk 0:02:06.1]} 15. a3 {[%clk 0:02:29.4]} 15...
Nc6 {[%clk 0:01:59.3]} 16. h3 {[%clk 0:02:18.2]} 16... Ne3 {[%clk 0:01:37.9]}
17. Kf2 {[%clk 0:02:14.5]} 17... Nxd4 {[%clk 0:01:15.8]} 18. Nxd4 {[%clk
0:02:01.5]} 18... Qg5 {[%clk 0:01:16.2]} 19. Rg1 {[%clk 0:01:15.6]} 19... Rd8
{[%clk 0:01:12.3]} 20. Qc1 {[%clk 0:01:04.3]} 20... Qf4+ {[%clk 0:00:53]} 21.
Nf3 {[%clk 0:00:57.1]} 21... Rd2 {[%clk 0:00:29.2]} 22. Qxd2 {[%clk 0:00:50.9]}
22... Ng4+ {[%clk 0:00:28]} 23. hxg4 {[%clk 0:00:49.8]} 1-0

[Event "*** Titled Tuesday 3|2 Blitz"]
[Site "Chess.com"]
[Date "2016.07.05"]
[Round "3"]
[White "Ginger_GM"]
[Black "FairChess_on_YouTube"]
[Result "0-1"]
[WhiteElo "2511"]
[BlackElo "2729"]
[TimeControl "180+2"]
[EndTime "11:32:29 PDT"]
[Termination "FairChess_on_YouTube won by resignation"]

1. d4 {[%clk 0:03:01.9]} 1... d5 {[%clk 0:03:00.3]} 2. c4 {[%clk 0:03:02.9]}
2... c6 {[%clk 0:03:01.8]} 3. Nc3 {[%clk 0:03:03.9]} 3... Nf6 {[%clk 0:03:02.9]}
4. Nf3 {[%clk 0:03:05.2]} 4... a6 {[%clk 0:03:04.3]} 5. h4 {[%clk 0:03:05.5]}
5... b5 {[%clk 0:03:02]} 6. c5 {[%clk 0:03:03.7]} 6... Bf5 {[%clk 0:03:01.7]} 7.
Bf4 {[%clk 0:03:01.7]} 7... Nbd7 {[%clk 0:03:00.4]} 8. e3 {[%clk 0:03:02]} 8...
e6 {[%clk 0:02:59.5]} 9. h5 {[%clk 0:03:01.5]} 9... h6 {[%clk 0:02:59]} 10. Be2
{[%clk 0:03:00.5]} 10... Be7 {[%clk 0:02:58.8]} 11. Ne5 {[%clk 0:02:55.6]} 11...
Nxe5 {[%clk 0:02:52.1]} 12. Bxe5 {[%clk 0:02:56.9]} 12... O-O {[%clk 0:02:51.1]}
13. g4 {[%clk 0:02:57.7]} 13... Bh7 {[%clk 0:02:51.7]} 14. Bg3 {[%clk
0:02:32.1]} 14... b4 {[%clk 0:02:49.5]} 15. Na4 {[%clk 0:02:31.8]} 15... Ne4
{[%clk 0:02:50.6]} 16. Rg1 {[%clk 0:02:15.1]} 16... Bh4 {[%clk 0:02:42.9]} 17.
Nb6 {[%clk 0:01:51.9]} 17... Ra7 {[%clk 0:02:43.5]} 18. Bd3 {[%clk 0:01:51.7]}
18... Bxg3 {[%clk 0:02:39]} 19. fxg3 {[%clk 0:01:52.7]} 19... Qg5 {[%clk
0:02:36.4]} 20. Qe2 {[%clk 0:01:52.1]} 20... e5 {[%clk 0:02:37.1]} 21. O-O-O
{[%clk 0:01:36.1]} 21... Re8 {[%clk 0:02:37.4]} 22. Bxe4 {[%clk 0:01:35.9]}
22... Bxe4 {[%clk 0:02:37.1]} 23. Rgf1 {[%clk 0:01:30]} 23... Rae7 {[%clk
0:02:34.2]} 24. dxe5 {[%clk 0:01:18.3]} 24... Rxe5 {[%clk 0:02:34.9]} 25. Rf4
{[%clk 0:01:19.1]} 25... Bh7 {[%clk 0:02:27.3]} 26. Qxa6 {[%clk 0:01:06]} 26...
Rxe3 {[%clk 0:02:24.3]} 27. Qb7 {[%clk 0:01:07.2]} 27... Re2 {[%clk 0:01:35.9]}
28. Qxf7+ {[%clk 0:01:07.4]} 28... Kh8 {[%clk 0:01:36.9]} 29. Nd7 {[%clk
0:00:35.9]} 29... R2e7 {[%clk 0:01:27.9]} 0-1

[Event "*** Titled Tuesday 3|2 Blitz"]
[Site "Chess.com"]
[Date "2016.07.05"]
[Round "3"]
[White "Gajuchess"]
[Black "HansCoolNiemann"]
[Result "1-0"]
[WhiteElo "2525"]
[BlackElo "2338"]
[TimeControl "180+2"]
[EndTime "11:32:41 PDT"]
[Termination "Gajuchess won by resignation"]

1. e4 {[%clk 0:03:00]} 1... g6 {[%clk 0:02:58]} 2. d4 {[%clk 0:03:00.7]} 2...
Bg7 {[%clk 0:02:58.2]} 3. Nf3 {[%clk 0:03:01.6]} 3... c6 {[%clk 0:02:59.4]} 4.
Nc3 {[%clk 0:02:59.4]} 4... d5 {[%clk 0:03:00.5]} 5. h3 {[%clk 0:03:00.8]} 5...
dxe4 {[%clk 0:03:00.5]} 6. Nxe4 {[%clk 0:03:01.7]} 6... Nd7 {[%clk 0:02:58.3]}
7. Bc4 {[%clk 0:03:01.2]} 7... Ngf6 {[%clk 0:02:58.9]} 8. Nxf6+ {[%clk
0:02:58.9]} 8... Bxf6 {[%clk 0:02:55.7]} 9. O-O {[%clk 0:03:00.8]} 9... Nb6
{[%clk 0:02:51]} 10. Bb3 {[%clk 0:02:59.5]} 10... O-O {[%clk 0:02:52.3]} 11. c3
{[%clk 0:02:58.8]} 11... Bf5 {[%clk 0:02:51.1]} 12. Bh6 {[%clk 0:02:56]} 12...
Re8 {[%clk 0:02:50.3]} 13. Re1 {[%clk 0:02:52.6]} 13... Rc8 {[%clk 0:02:40.1]}
14. Ne5 {[%clk 0:02:51.3]} 14... Nd5 {[%clk 0:02:31.6]} 15. Qf3 {[%clk
0:02:49.6]} 15... Bg7 {[%clk 0:02:07.2]} 16. Bxg7 {[%clk 0:02:40.7]} 16... Kxg7
{[%clk 0:02:09.1]} 17. g4 {[%clk 0:02:42.6]} 17... Be6 {[%clk 0:02:08.9]} 18.
Nd3 {[%clk 0:02:43.9]} 18... b6 {[%clk 0:02:08.5]} 19. Re2 {[%clk 0:02:37.3]}
19... Qd6 {[%clk 0:02:06.5]} 20. Rae1 {[%clk 0:02:37.8]} 20... Rf8 {[%clk
0:01:54.5]} 21. Re5 {[%clk 0:02:02.3]} 21... Rce8 {[%clk 0:01:50.2]} 22. Qe2
{[%clk 0:02:01.1]} 22... a5 {[%clk 0:01:38.1]} 23. Bxd5 {[%clk 0:01:42.9]} 23...
Bxd5 {[%clk 0:01:33.8]} 24. b3 {[%clk 0:01:38.7]} 24... e6 {[%clk 0:01:27]} 25.
c4 {[%clk 0:01:37.5]} 25... Bxc4 {[%clk 0:01:22.8]} 26. bxc4 {[%clk 0:01:38.2]}
26... Qxd4 {[%clk 0:01:24.4]} 27. Re4 {[%clk 0:01:30.9]} 27... Qd6 {[%clk
0:01:22.2]} 28. Qb2+ {[%clk 0:01:28.5]} 28... f6 {[%clk 0:01:20.5]} 29. Rd4
{[%clk 0:01:28.7]} 29... Qc7 {[%clk 0:01:19.4]} 30. c5 {[%clk 0:01:29.6]} 30...
b5 {[%clk 0:01:11.6]} 31. g5 {[%clk 0:01:26.7]} 31... e5 {[%clk 0:01:03.1]} 32.
Rd6 {[%clk 0:01:24]} 32... Qe7 {[%clk 0:00:59.2]} 33. gxf6+ {[%clk 0:01:23]}
33... Rxf6 {[%clk 0:00:57.7]} 34. Rxe5 {[%clk 0:01:23.5]} 1-0

[Event "*** Titled Tuesday 3|2 Blitz"]
[Site "Chess.com"]
[Date "2016.07.05"]
[Round "3"]
[White "Boryboy"]
[Black "underdogchss"]
[Result "1-0"]
[WhiteElo "2530"]
[BlackElo "2342"]
[TimeControl "180+2"]
[EndTime "11:33:14 PDT"]
[Termination "Boryboy won by resignation"]

1. d4 {[%clk 0:03:01.9]} 1... Nf6 {[%clk 0:03:00.6]} 2. Nf3 {[%clk 0:03:00.1]}
2... e6 {[%clk 0:03:00.5]} 3. g3 {[%clk 0:02:56.9]} 3... b5 {[%clk 0:03:00.3]}
4. Bg2 {[%clk 0:02:57.4]} 4... Bb7 {[%clk 0:03:01.5]} 5. O-O {[%clk 0:02:55.4]}
5... c5 {[%clk 0:03:02.3]} 6. c3 {[%clk 0:02:56]} 6... h6 {[%clk 0:02:56.3]} 7.
a4 {[%clk 0:02:55.3]} 7... b4 {[%clk 0:02:57.3]} 8. cxb4 {[%clk 0:02:54.2]} 8...
cxb4 {[%clk 0:02:56.2]} 9. a5 {[%clk 0:02:54.8]} 9... Na6 {[%clk 0:02:53.3]} 10.
Nbd2 {[%clk 0:02:53.4]} 10... Be7 {[%clk 0:02:52.2]} 11. Qa4 {[%clk 0:02:39.2]}
11... O-O {[%clk 0:02:50.8]} 12. Ne1 {[%clk 0:02:40.3]} 12... Bxg2 {[%clk
0:02:42.4]} 13. Nxg2 {[%clk 0:02:42.2]} 13... Qc7 {[%clk 0:02:41.9]} 14. Nb3
{[%clk 0:02:41.8]} 14... Qb7 {[%clk 0:02:15.8]} 15. Bd2 {[%clk 0:02:35.4]} 15...
Rac8 {[%clk 0:02:15.8]} 16. Nf4 {[%clk 0:02:28.9]} 16... Ne4 {[%clk 0:02:13.8]}
17. Nd3 {[%clk 0:02:28.8]} 17... Ng5 {[%clk 0:01:41.9]} 18. Bxg5 {[%clk
0:02:25.1]} 18... hxg5 {[%clk 0:01:42.9]} 19. Rfc1 {[%clk 0:02:24.5]} 19... d6
{[%clk 0:01:35.2]} 20. Rxc8 {[%clk 0:02:19.8]} 20... Rxc8 {[%clk 0:01:36.1]} 21.
Rc1 {[%clk 0:02:21.5]} 21... Rxc1+ {[%clk 0:01:34.7]} 22. Nbxc1 {[%clk
0:02:23.4]} 22... g6 {[%clk 0:01:31]} 23. Qe8+ {[%clk 0:02:22.3]} 23... Kg7
{[%clk 0:01:31.5]} 24. Nb3 {[%clk 0:02:23.7]} 24... Bf6 {[%clk 0:01:29.9]} 25.
Nd2 {[%clk 0:02:16]} 25... Bxd4 {[%clk 0:01:25.8]} 26. Nc4 {[%clk 0:02:03.7]}
26... Qd5 {[%clk 0:01:14.3]} 27. b3 {[%clk 0:01:58.7]} 27... Nc5 {[%clk
0:01:10.1]} 28. Nxc5 {[%clk 0:01:43.4]} 28... Qxc5 {[%clk 0:01:04.8]} 29. e3
{[%clk 0:01:42.9]} 29... Bf6 {[%clk 0:01:04]} 30. Qd7 {[%clk 0:01:29.6]} 30...
Be5 {[%clk 0:00:51.3]} 31. a6 {[%clk 0:01:30.9]} 31... g4 {[%clk 0:00:47.9]} 32.
Qb7 {[%clk 0:01:27.1]} 32... Qd5 {[%clk 0:00:33.8]} 33. Qxd5 {[%clk 0:01:21.7]}
33... exd5 {[%clk 0:00:34.5]} 34. Na5 {[%clk 0:01:23.4]} 34... d4 {[%clk
0:00:34.1]} 35. Nc6 {[%clk 0:01:22.8]} 35... d3 {[%clk 0:00:32.5]} 36. Kf1
{[%clk 0:01:24.2]} 36... Bc3 {[%clk 0:00:33.4]} 37. Nxa7 {[%clk 0:01:25.1]} 1-0